Cogmind - Beta 16.1 @@@ ROGUE MODE // 2026.02.23 @ 09:26:59 Player: Wulphy Result: Destroyed self with Grenade Launcher Performance ------------- Evolutions (0) 0 Regions Visited (2) 400 Robots Destroyed (24) 120 Value Destroyed (614) 614 Prototype IDs (0) 0 Alien Tech Used (0) 0 Bonus (0) 0 TOTAL SCORE: 1134 Bonus ------- None Cogmind --------- Core Integrity 0/250 Matter 278/300 Energy 76/100 System Corruption 0% Temperature Cool (0) Movement Treading (240) Ox1 Location -10/Subcaves Parts ------- > --- POWER (1) -------- (None) > --- PROPULSION (2) --- Light Treads > --- UTILITY (2) ------ Large Storage Unit Core Shielding > --- WEAPON (2) ------- Subdweller Machine Gun Grenade Launcher > --- INVENTORY (15) --- Armored Wheel Armored Wheel Armored Wheel Armored Wheel Disposable Heat Sink Medium Matter Pod (12) Makeshift Light Armor Plating Shield Generator Subdweller Laser Assault Rifle Assault Rifle Subdweller Machine Gun Multitool Mining Claw Piercing Trap Peak State ------------ > --- POWER ------------ Ion Engine > --- PROPULSION ------- Light Treads Light Treads > --- UTILITY ---------- Large Storage Unit Core Shielding > --- WEAPON ----------- Subdweller Machine Gun Subdweller Machine Gun > --- INVENTORY -------- Armored Wheel Armored Wheel Armored Wheel Armored Wheel Disposable Heat Sink Medium Matter Pod Structural Scanner Subdweller Optics Seismic Detector Shield Generator Assault Rifle Assault Rifle Grenade Launcher Mining Claw [Rating: 11] Favorites ----------- Power Ion Engine Engine Ion Engine Propulsion Light Treads Treads Light Treads Leg Aluminum Leg Utility Large Storage Unit Device Seismic Detector Storage Large Storage Unit Protection Core Shielding Weapon EM Pulse Gun Energy Gun EM Pulse Gun Ballistic Gun Light Assault Rifle Launcher Grenade Launcher Slashing Weapon Mining Claw Build | -11 -10 -10 ------- Run | Yrd Mat Sub Slots Evolved . | . . . Power . | . . . Propulsion . | . . . Utility . | . . . Weapon . | . . . Parts Attached 28 | 7 13 8 Power 2 | 1 . 1 Engine 2 | 1 . 1 Core . | . . . Reactor . | . . . Propulsion 5 | 2 3 . Treads 2 | . 2 . Leg 3 | 2 1 . Wheel . | . . . Hover . | . . . Flight . | . . . Utility 6 | 2 4 . Device 2 | 1 1 . Storage 3 | 1 2 . Processor . | . . . Hackware . | . . . Protection 1 | . 1 . Artifact . | . . . Weapon 15 | 2 6 7 Energy Gun 6 | . 3 3 Energy Cannon . | . . . Ballistic Gun 7 | 2 1 4 Ballistic Cannon . | . . . Launcher 1 | . 1 . Special Weapon . | . . . Impact Weapon . | . . . Slashing Weapon 1 | . 1 . Piercing Weapon . | . . . Special Melee Weapon . | . . . Unidentified Prototypes . | . . . Parts Lost 8 | . 2 6 Power 1 | . . 1 Propulsion 2 | . 1 1 Utility 1 | . . 1 Weapon 4 | . 1 3 Highest Loss Streak 2 | . 1 2 To Critical Strikes . | . . . Average Backups 12 | 4 13 14 Power . | . . . Propulsion 3 | 2 3 4 Utility 4 | . 4 5 Weapon 4 | . 5 4 Tool/Special . | . . . Unused Backups 16 | . 5 11 Power 1 | . 1 . Propulsion 6 | . 2 4 Utility 6 | . . 6 Weapon 2 | . 2 . Tool/Special 1 | . . 1 Average Slot Usage (%) 98 | . 98 98 Engine 13 | . 13 13 Treads 24 | . 22 27 Leg 2 | . 4 . Device 9 | . 11 5 Storage 14 | . 14 14 Protection 4 | . 2 8 Energy Gun 16 | . 19 10 Ballistic Gun 8 | . 6 13 Slashing Weapon 2 | . 1 2 Peak Build Rating 11 | 7 9 11 Average Rating 8 | 5 8 9 On Entrance 5 | . 7 9 Avg Prop Armor Cover (%) . | . . . Naked Turns . | . . . Heaviest Build 34 | 13 31 34 Greatest Support 40 | 20 40 40 Greatest Overweight (x) 1 | . 1 . Average Overweight (x) . | . . . Largest Inventory Capacity 15 | 8 15 15 Average Capacity 13 | 7 13 15 Most Carried 15 | 6 15 15 Average Carried 13 | 4 13 14 Final Capacity 15 | 8 15 15 Final Carried 15 | 6 15 15 Class Distribution -------------------- 100% | Mutant Dominant Class ---------------- Mutant | -10/Materials Mutant | -10/Subcaves Resources | -11 -10 -10 ----------- Run | Yrd Mat Sub Matter Collected 961 | 304 406 251 Remotely . | . . . Salvage Created 957 | 107 675 175 Parts 51 | 5 34 12 Haulers Intercepted 2 | . 2 . Recyclers Shooed 1 | 1 . . Parts Field Recycled . | . . . Retrieved Matter . | . . . Parts Self-Destructed 8 | . . 8 Prevented . | . . . Parts Restored . | . . . Kills | -11 -10 -10 ------- Run | Yrd Mat Sub Combat Hostiles Destroyed 17 | . 12 5 Guns 12 | . 9 3 AOE 4 | . 2 2 Classes Destroyed 9 | 2 5 2 Worker 1 | . 1 . Builder 1 | . 1 . Tunneler 1 | 1 . . Hauler 2 | . 2 . Recycler 2 | 1 1 . Swarmer 3 | . 3 . Grunt 9 | . 9 . Artisan 1 | . . 1 Subdweller 5 | . . 5 Best Kill Streak 7 | 1 7 2 Combat Bots Only 3 | . 3 2 Max Kills in Single Turn 4 | 1 4 1 Gunslinging . | . . . Exploded 2 | . 2 1 Melee . | . . . Uniques/NPCs Destroyed . | . . . Combat | -11 -10 -10 -------- Run | Yrd Mat Sub Hostile Shots Fired 126 | . 75 51 Missed 40 | . 25 15 Hits 86 | . 50 36 Projectile 86 | . 50 36 Critical Strikes 3 | . 2 1 Actively Blocked 1 | . . 1 Damage Taken 1418 | . 621 797 Core 267 | . 93 174 Absorbed by Shields . | . . . Redirected to Shielding 44 | . 5 39 Regen/Repaired (Parts) 92 | . 92 . Core Remaining (%) 100 | 100 . . Volleys Fired 94 | 17 52 25 Largest 2 | 2 2 2 Hottest 90 | 40 80 90 Shots Fired 181 | 34 103 44 Gun 174 | 34 102 38 Cannon . | . . . Launcher 7 | . 1 6 Special . | . . . Kinetic 94 | 34 36 24 Thermal 6 | . . 6 Explosive 7 | . 1 6 Electromagnetic 74 | . 66 8 Robot Hit Streak 10 | 9 10 9 Robot Miss Streak 3 | 3 3 2 Penetration Max . | . . . Secondary Targets . | . . . Shots Hit Robots 123 | 25 64 34 Core Hits 49 | 7 31 11 Critical Kills . | . . . Critical Parts Destroyed 2 | 1 1 . Critical Strikes 3 | 1 1 1 Destroy 3 | 1 1 1 Melee Attacks 5 | . 2 3 Impact . | . . . Slashing 5 | . 2 3 Piercing . | . . . Sneak Attacks 1 | . . 1 Combat Hostiles . | . . . Follow-up Attacks . | . . . Damage Inflicted 2140 | 198 1081 861 Guns 1495 | 198 811 486 Cannons . | . . . Explosions 599 | . 270 329 Melee 46 | . . 46 Ramming . | . . . Kinetic 760 | 198 266 296 Thermal 197 | . 76 121 Explosive 523 | . 194 329 Electromagnetic 614 | . 545 69 Impact . | . . . Slashing 46 | . . 46 Piercing . | . . . Highest Corruption . | . . . Average Corruption . | . . . Corruption Purged . | . . . Corruption Blocked . | . . . Overload Shots . | . . . Overflow Damage 17 | . 17 . Projectiles . | . . . Explosions 17 | . 17 . Melee . | . . . Knockbacks . | . . . Impact . | . . . Kinetic . | . . . Secondary . | . . . Self-Inflicted Damage 74 | . 38 36 Shots 3 | . 2 1 Rammed . | . . . Targets Rammed . | . . . Kicked . | . . . Crushed . | . . . Highest Temperature 306 | . 306 . Average Temperature 87 | . 87 . Received Heat Transfer 435 | . 333 102 Effects 1 | . 1 . Energy Bleed 1 | . 1 . Siege Activations . | . . . Martial Activations . | . . . Shielding Activations . | . . . Robots Disrupted . | . . . Combat Hostiles . | . . . Robots Corrupted 1 | . 1 . Combat Hostiles 1 | . 1 . Parts Fried 3 | . 3 . Impact Corruptions . | . . . Robots Melted . | . . . Combat Hostiles . | . . . Parts Melted 1 | . . 1 Heat Transferred 250 | . 100 150 Parts Sabotaged . | . . . Parts Stolen . | . . . Parts Stripped . | . . . Power Chain Reactions 1 | . 1 . Alert | -11 -10 -10 ------- Run | Yrd Mat Sub Maximum Alert Level . | . . . Low Security (%) 100 | 100 100 . Level 1 . | . . . Level 2 . | . . . Level 3 . | . . . Level 4 . | . . . Level 5 . | . . . High Security . | . . . Max Security . | . . . Peak Influence 124 | 5 124 . Initial . | . . . Average 42 | . 47 . Influence Increases 385 | 10 375 . Destroy 0b10 Robot/C 240 | . 240 . Destroy 0b10 Robot/NC 35 | 10 25 . Destroy Leader 54 | . 54 . Successful Hack 34 | . 34 . Disable Machine 15 | . 15 . Destroy Structure 7 | . 7 . Influence Decreases 385 | 10 297 78 Entered New Map 38 | . . 38 Time Decay 317 | 10 277 30 Lost Part 30 | . 20 10 Squads Dispatched 1 | . 1 . Investigation . | . . . Extermination . | . . . Reinforcement 1 | . 1 . Assault . | . . . Garrison . | . . . Intercept . | . . . Searches Triggered . | . . . Construction Impeded . | . . . Haulers Reinforced . | . . . Active Scanning Responses . | . . . Cargo Convoy Interrupts . | . . . Stealth | -11 -10 -10 --------- Run | Yrd Mat Sub Distress Signals 1 | . 1 . Communications Jammed . | . . . Distress Signals . | . . . Times Spotted 33 | . 23 10 Peak Tracking Total 6 | . 6 3 Tactical Retreats 1 | . . 1 Traps | -11 -10 -10 ------- Run | Yrd Mat Sub Traps Triggered 1 | . 1 . Indirectly . | . . . Trap Hack Attempts . | . . . Triggered . | . . . Disarmed . | . . . Reprogrammed . | . . . Reused . | . . . Traps Extracted . | . . . Installed . | . . . Triggered . | . . . Most Traps Carried 1 | . . 1 Machines | -11 -10 -10 ---------- Run | Yrd Mat Sub Machines Disabled 1 | . 1 . Max in Single Turn 1 | . 1 . Machines Repaired . | . . . Machines Dismantled . | . . . Machines Sabotaged . | . . . Overloaded Fab Kills . | . . . Hacking | -11 -10 -10 --------- Run | Yrd Mat Sub Machines Accessed 10 | . 9 1 Terminals 7 | . 7 . Fabricators . | . . . Repair Stations 1 | . 1 . Recycling Units 1 | . 1 . Scanalyzers . | . . . Garrison Access . | . . . Total Hacks 40 | . 36 4 Successful 28 | . 24 4 Failed 12 | . 12 . Catastrophic . | . . . Database Lockouts . | . . . Manual 17 | . 17 . Terminals 30 | . 30 . Fabricators . | . . . Repair Stations 5 | . 5 . Recycling Units 1 | . 1 . Scanalyzers . | . . . Garrison Access . | . . . Terminal Hacks 15 | . 11 4 Record 4 | . . 4 Terminal Index 1 | . 1 . Locate Traps 3 | . 3 . Maintenance Status 2 | . 2 . Security Status 1 | . 1 . Transport Status 1 | . 1 . Zone Layout 3 | . 3 . Fabricator Hacks . | . . . Repair Station Hacks 3 | . 3 . Scan Component 2 | . 2 . Repair 1 | . 1 . Recycling Unit Hacks 1 | . 1 . Retrieve Components 1 | . 1 . Scanalyzer . | . . . Garrison Access Hacks . | . . . Unauthorized Hacks 9 | . 9 . Terminals 9 | . 9 . Botnet 4 | . 4 . Skim 5 | . 5 . Fabricators . | . . . Repair Stations . | . . . Recycling Units . | . . . Scanalyzers . | . . . Garrison Access . | . . . Data Cores Recovered . | . . . Used . | . . . Hacking Detections 7 | . 7 . Full Trace Events . | . . . Feedback Events . | . . . Feedback Blocked . | . . . Robot Schematics Acquired . | . . . Robots Built . | . . . Authchips . | . . . Time . | . . . Total Robot Build Rating . | . . . Part Schematics Acquired . | . . . Parts Built . | . . . Authchips . | . . . Time . | . . . Total Part Build Rating . | . . . Part Studies Acquired . | . . . Parts Repaired 1 | . 1 . Time 36 | . 36 . Parts Recycled . | . . . Recycled Matter . | . . . Retrieved Matter . | . . . Retrieved Components 7 | . 7 . Parts Scanalyzed . | . . . Part Schematics Acquired . | . . . Parts Damaged . | . . . Bothacking | -11 -10 -10 ------------ Run | Yrd Mat Sub Used RIF Installer . | . . . Robots Hacked . | . . . Non-combat . | . . . Combat . | . . . Robot Hacks Applied . | . . . Relay Couplers Released . | . . . Fabnet Peak Effective % . | . . . Robots Rewired . | . . . Allies Hacked . | . . . Hacks Repelled . | . . . Allies | -11 -10 -10 -------- Run | Yrd Mat Sub Total Allies . | . . . Largest Group . | . . . Highest-Rated Group . | . . . Highest-Rated Ally . | . . . Total Orders . | . . . Ally Attacks . | . . . Total Damage . | . . . Kills . | . . . Allies Corrupted . | . . . Allies Melted . | . . . Intel | -11 -10 -10 ------- Run | Yrd Mat Sub Active Infowar (turns) 1175 | 19 928 228 Seismic 1175 | 19 928 228 Robot Analysis Total . | . . . Derelict Logs Recovered 1 | . . 1 Drone Launches . | . . . Drone Recoveries . | . . . Exploration | -11 -10 -10 ------------- Run | Yrd Mat Sub Turns Passed 1839 | 136 1126 577 Spaces Moved 890 | 63 549 278 Core 4 | 4 . . Treads 734 | . 456 278 Legs 152 | 59 93 . Wheels . | . . . Hover . | . . . Flight . | . . . Fastest Speed 50 | 50 120 160 Average Speed 152 | 115 153 160 Slowest Speed 190 | 120 190 160 Overloaded Moves . | . . . Propulsion Burnouts . | . . . Robots Hopped . | . . . Potential Cave-ins . | . . . Cave-ins Triggered . | . . . Exploration Rate (%) 39 | 5 91 22 Regions Visited 2 Branch Regions 1 Pre-discovered Areas 1 | . . 1 Known Exits Taken 1 | . 1 . Unknown Exits Taken 1 | 1 . . Scrap Searched . | . . . Spaces Dug 1 | . 1 . Terrain Destroyed 40 | . 6 34 Melee 1 | . 1 . Projectile . | . . . AOE 39 | . 5 34 Terrain Rammed . | . . . Walls Destroyed . | . . . Machines Disabled . | . . . Actions | -11 -10 -10 --------- Run | Yrd Mat Sub Total 1187 | 95 732 360 Wait 91 | 3 70 18 Move 888 | 62 548 278 Hop . | . . . Pick Up 34 | 6 19 9 Fast Attach 16 | 7 7 2 Attach 9 | . 3 6 Detach 6 | . 4 2 Swap 24 | . 14 10 Drop 20 | . 13 7 Fire 94 | 17 52 25 Melee 5 | . 2 3 Ram . | . . . Kick . | . . . Crush . | . . . Escape Stasis . | . . . Rewire . | . . . Trap . | . . . Miscellaneous . | . . . Route ------- -11/Scrapyard -10/Materials (discovered 6 exits: *Mat x3 / *Min x2 / *Sub) -10/Subcaves (discovered 3 exits: *Mat x2 / Rec) History --------- Turn | Location | Event 26 | -11/Scrapyard | Discovered new exit (range 16) 137 | -11/Scrapyard | Entered Materials 313 | -10/Materials | Build established: Mutant 757 | -10/Materials | Discovered new exit (range 14) 911 | -10/Materials | Repaired Broken Lgt. Treads 1008 | -10/Materials | Discovered new exit (range 16) 1053 | -10/Materials | Learned 4 Recycling zone layouts 1087 | -10/Materials | Identified exit to Mines 1087 | -10/Materials | Identified exit to Subcaves 1110 | -10/Materials | Learned location of 2 exits from Subcaves 1121 | -10/Materials | Learned Storage security intel 1122 | -10/Materials | Identified exit to Materials 1125 | -10/Materials | Learned location of 2 exits from Mines 1126 | -10/Materials | Learned location of 1 exit from Recycling 1138 | -10/Materials | Learned Storage trap positions 1263 | -10/Materials | Entered Subcaves 1264 | -10/Subcaves | Approached by a straggling Scientist 1264 | -10/Subcaves | Identified exit to Materials 1264 | -10/Subcaves | Identified exit to Recycling 1431 | -10/Subcaves | Shifting Twisted Machinery released Sub. Machine Gun 1440 | -10/Subcaves | Shifting Twisted Machinery released Mak. Light Armor Plating 1441 | -10/Subcaves | A swath of the cavern ceiling suddenly collapsed 1557 | -10/Subcaves | Discovered exit to Materials (range 8) 1570 | -10/Subcaves | Visited Clippyterm 1575 | -10/Subcaves | Learned Factory fabricator intel 1575 | -10/Subcaves | Learned Research security intel 1677 | -10/Subcaves | Shifting Twisted Machinery released Piercing Trap 1689 | -10/Subcaves | Shifting Twisted Machinery released Sub. Laser 1764 | -10/Subcaves | Ambushed by angry Subdweller bent on revenge 1827 | -10/Subcaves | A Subdweller sparked back to life 1827 | -10/Subcaves | A Subdweller sparked back to life 1827 | -10/Subcaves | A Subdweller sparked back to life 1828 | -10/Subcaves | Core integrity fell below 50% 1838 | -10/Subcaves | Core integrity fell below 20% 1840 | -10/Subcaves | Destroyed self with Grenade Launcher Last Messages --------------- 01778_ Disposable Heat Sink melted. 01778_ OE-3P1(R) destroyed. 01781_ Acquired 26 matter. 01785_ Acquired Lgt. Ion Engine. 01788_ Acquired Multitool. 01789_ Dropped Ion Engine. 01789_ Extracted 10 matter. 01791_ Acquired Med. Matter Pod. 01792_ Acquired 8 matter. 01819_ 2I-73Y(z): "She is not going to be happy we haven't found any suitable candidates yet." 01827_ 30-3V9(R) creaks and sparks as it begins to move. 01827_ NM-U4E(R) creaks and sparks as it begins to move. 01827_ BD-TAW(R) creaks and sparks as it begins to move. 01829_ Lgt. Treads destroyed. 01833_ Lgt. Ion Engine destroyed. 01835_ 30-3V9(R) suffers critical hit (Destroy). Map ----- +----------------------------------------------------+ | " # <""""" ##?????????????????? | | #### ## " !"""""! "#?????????????????? | | ####### ##" " """"" "##?????????????????? | | ##?????## ###"" ###??????????????????? | | ????????###?##" #????????????????????? | | ?????????????### #######???????????????? | | ???????????????## #"# # #???????????????? | | ????????????????##"" #???????????????? | | ????????????????#"""### ##???????????????? | | ????????????????#"""#### ##??????????????? | | ?????????#####?##" # # #??????????????? | | ?????????# # ###""" #??????????????? | | ????????### ##" " # # #??????????????? | | ???????##"""#&# * ## ##??????????????? | | ???????# """"& ### # #??????????????? | | ???????##"#""#"#"""###"" ##??????????????? | | ????????######### # #??????????????? | | ????????????????######## #??????????????? | | ???????????????????????## ##??????????????? | | ????????????????????????# #???????????????? | | ????????????????????????# #???????????????? | | ????????????????????????# ##??????????????? | | ???????????????????????## ##?????????????? | | ?????????????????????###< #?????????????? | | ?????????????????????# R #?????????????? | | ?????????????????????#< @R #?????????????? | | ?????????????????????# R #?????????????? | | ?????????????????????#<<< ##?????????????? | | ?????????????????????# #;??????????????? | | ?????????????????????## ##?????????????? | | ??????????????????????# ???????????????? | | ??????????????????????# ##???????????????? | | ??????????????????????# ?????????????????? | | ?????????????????????? ?????????????????? | | ?????????????????????? ?????????????????? | | ?????????????????????? ?????????????????? | | ?????????????????????# ?????????????????? | | ?????????????????????# #?????????????????? | | ?????????????????????? ??????????????????? | | ???????????????????? ??????????????????? | | ???????????????????? ??????????????????? | | ???????????????????????????????????????? | | #?????????????????????????????????????????? | | ??????????????????????????????????????????? | | ??????????????????????????????????????????? | | ??????????????????????????????????????????? | | ??????????????????????????????????????????? | | ??????????????????????????????????????????? | | ??????????????????????????????????????????? | | ??????????????????????????????????????????? | +----------------------------------------------------+ Best States ------------- Heat Dissipation 35 Energy Generation 10 Energy Capacity 250 Matter Stores 300 Matter Capacity 300 Sight Range 16 Terrain Scan Density 10 Core Shielding 20 Evasion (%) 55 Recoil Reduction 2 Item Schematics ----------------- None Robot Schematics ------------------ None Fabricated ------------ Nothing Repaired ---------- Lgt. Treads | 34% | -10/Materials | Broken Studied --------- None Alien Tech Used ----------------- None Achievements -------------- None Challenges ------------ None Game ------ Seed ThermalCoilProtection Manual? 0 Play Time 00:23:19 Cumulative 405.7 hours Start 2026.02.13 @ 22:24:18 End 2026.02.23 @ 09:26:59 Sessions 2 Manual Loads 0 Difficulty Rogue Special Mode None Game No. 75 Rogue 75 Adventurer 0 Explorer 0 Win Type - Total 14 Types 5/1/5/1/0/0/1/1/0/0 Lore% 79 Gallery% 72 Achievement% 66 Wizard Run 0 Options --------- Layout 1 ASCII 0 Keyboard 1 Movement Vi Keybinds 1 Fullscreen 1 Font 36/Tamsyn Map View 50x40 Zoom Use 0% Tactical HUD 1 Map Filters NONE Filters NONE Steam 1 RUN: 52e2e095-bfa5-4ea4-828d-a17da8c152d8